[Event "Titled Tuesday Blitz April 11 Late 2023"]
[White "Martinez Reyes, Pedro Ramon"]
[Black "Mendonca, Leon Luke"]
[WhiteFideId "3901807"]
[BlackFideId "35028561"]
[WhiteElo "2340"]
[BlackElo "2464"]
[Result "1-0"]
[Round "11"]
[TimeControl "180+2"]
[Date "2023.04.11"]
[WhiteClock "0:00:07"]
[BlackClock "0:00:01"]

1. d3 {[%clk 0:03:00]}  d6 {[%clk 0:02:58]} 2. g3 {[%clk 0:02:59]}  g6 {[%clk 0:02:58]} 3. Bg2 {[%clk 0:03:00]}  Bg7 {[%clk 0:02:59]} 4. Nf3 {[%clk 0:03:00]}  Nf6 {[%clk 0:02:58]} 5. O-O {[%clk 0:03:01]}  O-O {[%clk 0:02:59]} 6. c4 {[%clk 0:03:01]}  c6 {[%clk 0:02:58]} 7. Nc3 {[%clk 0:03:01]}  a5 {[%clk 0:02:57]} 8. a3 {[%clk 0:03:00]}  Bg4 {[%clk 0:02:55]} 9. h3 {[%clk 0:02:59]}  Bxf3 {[%clk 0:02:55]} 10. Bxf3 {[%clk 0:02:59]}  e6 {[%clk 0:02:55]} 11. Bd2 {[%clk 0:02:59]}  d5 {[%clk 0:02:55]} 12. Qb3 {[%clk 0:02:52]}  Qc7 {[%clk 0:02:37]} 13. Rac1 {[%clk 0:02:51]}  d4 {[%clk 0:02:29]} 14. Ne4 {[%clk 0:02:37]}  Nxe4 {[%clk 0:02:29]} 15. Bxe4 {[%clk 0:02:38]}  a4 {[%clk 0:02:29]} 16. Qc2 {[%clk 0:02:33]}  Nd7 {[%clk 0:02:29]} 17. Bb4 {[%clk 0:02:33]}  Rfe8 {[%clk 0:02:26]} 18. Bg2 {[%clk 0:02:31]}  Bf8 {[%clk 0:02:26]} 19. Bd2 {[%clk 0:02:31]}  Nc5 {[%clk 0:02:24]} 20. Rcd1 {[%clk 0:02:21]}  Nb3 {[%clk 0:02:23]} 21. Be1 {[%clk 0:02:10]}  e5 {[%clk 0:02:14]} 22. Bd2 {[%clk 0:02:05]}  Bd6 {[%clk 0:02:04]} 23. Bh6 {[%clk 0:02:03]}  Qe7 {[%clk 0:02:03]} 24. e3 {[%clk 0:02:01]}  Qf6 {[%clk 0:01:48]} 25. h4 {[%clk 0:01:57]}  Bc5 {[%clk 0:01:45]} 26. e4 {[%clk 0:01:56]}  Bd6 {[%clk 0:01:45]} 27. Qe2 {[%clk 0:01:56]}  Bf8 {[%clk 0:01:38]} 28. Bg5 {[%clk 0:01:56]}  Qg7 {[%clk 0:01:38]} 29. Qf3 {[%clk 0:01:53]}  Be7 {[%clk 0:01:37]} 30. Qg4 {[%clk 0:01:42]}  b5 {[%clk 0:01:28]} 31. cxb5 {[%clk 0:01:28]}  cxb5 {[%clk 0:01:28]} 32. Qd7 {[%clk 0:01:25]}  Bxg5 {[%clk 0:01:20]} 33. hxg5 {[%clk 0:01:26]}  Rab8 {[%clk 0:01:00]} 34. f4 {[%clk 0:01:26]}  Qf8 {[%clk 0:00:44]} 35. fxe5 {[%clk 0:01:03]}  Qe7 {[%clk 0:00:44]} 36. Qd5 {[%clk 0:01:03]}  Red8 {[%clk 0:00:39]} 37. Qc6 {[%clk 0:00:59]}  Qxe5 {[%clk 0:00:37]} 38. Rf4 {[%clk 0:00:51]}  Qxg5 {[%clk 0:00:35]} 39. Rdf1 {[%clk 0:00:49]}  Rf8 {[%clk 0:00:30]} 40. Qd7 {[%clk 0:00:43]}  Rbd8 {[%clk 0:00:26]} 41. Qa7 {[%clk 0:00:38]}  Ra8 {[%clk 0:00:15]} 42. Qc7 {[%clk 0:00:33]}  Rac8 {[%clk 0:00:12]} 43. Qa7 {[%clk 0:00:32]}  f6 {[%clk 0:00:10]} 44. e5 {[%clk 0:00:29]}  Qxe5 {[%clk 0:00:09]} 45. Re4 {[%clk 0:00:30]}  Qc7 {[%clk 0:00:05]} 46. Re7 {[%clk 0:00:14]}  Qxa7 {[%clk 0:00:04]} 47. Rxa7 {[%clk 0:00:14]}  Rc5 {[%clk 0:00:03]} 48. Re1 {[%clk 0:00:14]}  Rf7 {[%clk 0:00:03]} 49. Re8+ {[%clk 0:00:13]}  Kg7 {[%clk 0:00:04]} 50. Raa8 {[%clk 0:00:13]}  f5 {[%clk 0:00:04]} 51. Rab8 {[%clk 0:00:11]}  Rfc7 {[%clk 0:00:03]} 52. Kh2 {[%clk 0:00:11]}  Kh6 {[%clk 0:00:04]} 53. Kh3 {[%clk 0:00:11]}  Nc1 {[%clk 0:00:04]} 54. Bf1 {[%clk 0:00:07]}  Nb3 {[%clk 0:00:03]} 55. Rh8 {[%clk 0:00:05]}  Rc1 {[%clk 0:00:03]} 56. Bg2 {[%clk 0:00:05]}  R1c2 {[%clk 0:00:03]} 57. g4 {[%clk 0:00:06]}  fxg4+ {[%clk 0:00:03]} 58. Kg3 {[%clk 0:00:06]}  Rxb2 {[%clk 0:00:03]} 59. Be4 {[%clk 0:00:07]}  Rd2 {[%clk 0:00:02]} 60. Rbg8 {[%clk 0:00:07]}  Kg5 {[%clk 0:00:01]} 61. Rxh7 {[%clk 0:00:07]} 1-0


[Site "https://www.chess.com"]

[Event "Titled Tuesday Blitz April 11 Late 2023"]
[White "Goltsev, Dmitry"]
[Black "Mamedov, Edgar"]
[WhiteFideId "24176710"]
[BlackFideId "13739980"]
[WhiteElo "2336"]
[BlackElo "2330"]
[Result "1-0"]
[Round "11"]
[TimeControl "180+2"]
[Date "2023.04.11"]
[WhiteClock "0:00:12"]
[BlackClock "0:00:02"]

1. e4 {[%clk 0:03:00]}  c6 {[%clk 0:02:59]} 2. d4 {[%clk 0:02:59]}  d5 {[%clk 0:02:59]} 3. Nc3 {[%clk 0:03:00]}  dxe4 {[%clk 0:02:59]} 4. Nxe4 {[%clk 0:03:01]}  Nf6 {[%clk 0:02:59]} 5. Ng3 {[%clk 0:03:00]}  h5 {[%clk 0:02:57]} 6. h4 {[%clk 0:03:00]}  Bg4 {[%clk 0:02:53]} 7. f3 {[%clk 0:02:56]}  Qc7 {[%clk 0:02:50]} 8. N1e2 {[%clk 0:02:56]}  Bc8 {[%clk 0:02:46]} 9. Bf4 {[%clk 0:02:55]}  Qb6 {[%clk 0:02:46]} 10. b3 {[%clk 0:02:48]}  Nbd7 {[%clk 0:02:44]} 11. c4 {[%clk 0:02:48]}  e6 {[%clk 0:02:44]} 12. a3 {[%clk 0:02:45]}  c5 {[%clk 0:02:44]} 13. Be3 {[%clk 0:02:38]}  cxd4 {[%clk 0:02:42]} 14. Bxd4 {[%clk 0:02:39]}  Bc5 {[%clk 0:02:42]} 15. b4 {[%clk 0:02:39]}  Bxd4 {[%clk 0:02:42]} 16. Qxd4 {[%clk 0:02:40]}  Qxd4 {[%clk 0:02:40]} 17. Nxd4 {[%clk 0:02:41]}  Ke7 {[%clk 0:02:37]} 18. Be2 {[%clk 0:02:38]}  Rd8 {[%clk 0:02:36]} 19. Kf2 {[%clk 0:02:34]}  Ne5 {[%clk 0:02:28]} 20. Rhd1 {[%clk 0:02:33]}  Bd7 {[%clk 0:02:27]} 21. c5 {[%clk 0:02:29]}  Nd5 {[%clk 0:02:24]} 22. Ndf5+ {[%clk 0:02:26]}  Kf8 {[%clk 0:02:21]} 23. Nd6 {[%clk 0:02:26]}  b6 {[%clk 0:02:21]} 24. Nxh5 {[%clk 0:02:23]}  Nc3 {[%clk 0:02:19]} 25. Rd2 {[%clk 0:02:22]}  bxc5 {[%clk 0:02:17]} 26. bxc5 {[%clk 0:02:21]}  Nxe2 {[%clk 0:02:17]} 27. Kxe2 {[%clk 0:02:19]}  Rab8 {[%clk 0:02:12]} 28. Rc1 {[%clk 0:02:15]}  Bc6 {[%clk 0:02:08]} 29. Rc3 {[%clk 0:02:11]}  Rb1 {[%clk 0:02:03]} 30. Nf4 {[%clk 0:02:01]}  Rh1 {[%clk 0:02:01]} 31. Rd4 {[%clk 0:01:42]}  Kg8 {[%clk 0:01:58]} 32. h5 {[%clk 0:01:34]}  Rb8 {[%clk 0:01:54]} 33. Rb4 {[%clk 0:01:30]}  Rxb4 {[%clk 0:01:53]} 34. axb4 {[%clk 0:01:31]}  Rb1 {[%clk 0:01:52]} 35. Nd3 {[%clk 0:01:06]}  Nxd3 {[%clk 0:00:09]} 36. Kxd3 {[%clk 0:00:38]}  Rxb4 {[%clk 0:00:08]} 37. Ra3 {[%clk 0:00:37]}  Ra4 {[%clk 0:00:07]} 38. Rb3 {[%clk 0:00:20]}  Kf8 {[%clk 0:00:04]} 39. Rb8+ {[%clk 0:00:19]}  Ke7 {[%clk 0:00:04]} 40. Rg8 {[%clk 0:00:19]}  Kf6 {[%clk 0:00:03]} 41. Rf8 {[%clk 0:00:19]}  Ke5 {[%clk 0:00:02]} 42. Rxf7 {[%clk 0:00:17]}  Bd5 {[%clk 0:00:02]} 43. g3 {[%clk 0:00:15]}  Ra3+ {[%clk 0:00:02]} 44. Ke2 {[%clk 0:00:14]}  Kd4 {[%clk 0:00:02]} 45. Nb5+ {[%clk 0:00:12]} 1-0


[Site "https://www.chess.com"]

[Event "Titled Tuesday Blitz April 11 Late 2023"]
[White "Filgueira, Hernan"]
[Black "Tanenbaum, Zachary"]
[WhiteFideId "101770"]
[BlackFideId "2060850"]
[WhiteElo "2363"]
[BlackElo "2175"]
[Result "0-1"]
[Round "11"]
[TimeControl "180+2"]
[Date "2023.04.11"]
[WhiteClock "0:00:17"]
[BlackClock "0:00:05"]

1. c4 {[%clk 0:02:59]}  e5 {[%clk 0:03:00]} 2. Nc3 {[%clk 0:02:59]}  Nf6 {[%clk 0:03:00]} 3. Nf3 {[%clk 0:02:59]}  Nc6 {[%clk 0:03:00]} 4. a3 {[%clk 0:02:59]}  d6 {[%clk 0:02:57]} 5. d3 {[%clk 0:02:57]}  g6 {[%clk 0:02:55]} 6. g3 {[%clk 0:02:56]}  Bg7 {[%clk 0:02:55]} 7. Bg2 {[%clk 0:02:56]}  O-O {[%clk 0:02:55]} 8. O-O {[%clk 0:02:56]}  Bd7 {[%clk 0:02:53]} 9. Rb1 {[%clk 0:02:57]}  Qc8 {[%clk 0:02:52]} 10. b4 {[%clk 0:02:57]}  Bh3 {[%clk 0:02:50]} 11. Bg5 {[%clk 0:02:56]}  Qg4 {[%clk 0:02:23]} 12. Bxf6 {[%clk 0:02:54]}  Bxf6 {[%clk 0:02:23]} 13. Nd5 {[%clk 0:02:54]}  Bd8 {[%clk 0:02:22]} 14. b5 {[%clk 0:02:51]}  Bxg2 {[%clk 0:02:12]} 15. Kxg2 {[%clk 0:02:50]}  Nb8 {[%clk 0:02:00]} 16. e4 {[%clk 0:02:41]}  Nd7 {[%clk 0:01:55]} 17. h3 {[%clk 0:02:25]}  Qe6 {[%clk 0:01:49]} 18. Qe2 {[%clk 0:02:23]}  c6 {[%clk 0:01:49]} 19. bxc6 {[%clk 0:02:21]}  bxc6 {[%clk 0:01:50]} 20. Nb4 {[%clk 0:02:21]}  Rc8 {[%clk 0:01:46]} 21. h4 {[%clk 0:02:17]}  Nf6 {[%clk 0:01:44]} 22. Ng5 {[%clk 0:02:11]}  Qd7 {[%clk 0:01:42]} 23. Nc2 {[%clk 0:02:07]}  Bb6 {[%clk 0:01:36]} 24. Qf3 {[%clk 0:02:04]}  Kg7 {[%clk 0:01:33]} 25. Qe2 {[%clk 0:01:56]}  h6 {[%clk 0:01:30]} 26. Nf3 {[%clk 0:01:55]}  Qg4 {[%clk 0:01:29]} 27. Ne3 {[%clk 0:01:51]}  Bxe3 {[%clk 0:01:29]} 28. Qxe3 {[%clk 0:01:51]}  Nh5 {[%clk 0:01:29]} 29. Nh2 {[%clk 0:01:47]}  Qd7 {[%clk 0:01:23]} 30. Qf3 {[%clk 0:01:39]}  Rb8 {[%clk 0:01:14]} 31. Ng4 {[%clk 0:01:23]}  Qe6 {[%clk 0:01:09]} 32. Ne3 {[%clk 0:01:21]}  Nf6 {[%clk 0:01:06]} 33. Rb4 {[%clk 0:01:11]}  Nd7 {[%clk 0:01:03]} 34. h5 {[%clk 0:01:09]}  a5 {[%clk 0:00:59]} 35. Rxb8 {[%clk 0:01:04]}  Rxb8 {[%clk 0:01:00]} 36. Rh1 {[%clk 0:01:04]}  Nc5 {[%clk 0:00:56]} 37. Qe2 {[%clk 0:00:55]}  Rb3 {[%clk 0:00:50]} 38. hxg6 {[%clk 0:00:53]}  fxg6 {[%clk 0:00:50]} 39. Ng4 {[%clk 0:00:52]}  h5 {[%clk 0:00:50]} 40. Ne3 {[%clk 0:00:51]}  Nxd3 {[%clk 0:00:42]} 41. Nf5+ {[%clk 0:00:48]}  Kg8 {[%clk 0:00:27]} 42. Rxh5 {[%clk 0:00:36]}  gxh5 {[%clk 0:00:17]} 43. Qxh5 {[%clk 0:00:36]}  Rb7 {[%clk 0:00:10]} 44. Qg5+ {[%clk 0:00:32]}  Kh7 {[%clk 0:00:09]} 45. Qh5+ {[%clk 0:00:30]}  Kg8 {[%clk 0:00:09]} 46. Qg5+ {[%clk 0:00:28]}  Kf8 {[%clk 0:00:09]} 47. Qd8+ {[%clk 0:00:25]}  Kf7 {[%clk 0:00:07]} 48. Qh8 {[%clk 0:00:24]}  Qg6 {[%clk 0:00:05]} 49. Qc8 {[%clk 0:00:21]}  Nf4+ {[%clk 0:00:05]} 50. Kf3 {[%clk 0:00:20]}  Qh5+ {[%clk 0:00:05]} 51. g4 {[%clk 0:00:19]}  Qh1+ {[%clk 0:00:05]} 52. Ke3 {[%clk 0:00:18]}  Rb3+ {[%clk 0:00:06]} 53. Kd2 {[%clk 0:00:18]}  Rd3+ {[%clk 0:00:07]} 54. Kc2 {[%clk 0:00:17]}  Qd1+ {[%clk 0:00:05]} 0-1


[Site "https://www.chess.com"]

[Event "Titled Tuesday Blitz April 11 Late 2023"]
[White "Belov, Alexei"]
[Black "Manukyan, Sargis A."]
[WhiteFideId "4128206"]
[BlackFideId "13303970"]
[WhiteElo "2421"]
[BlackElo "2187"]
[Result "0-1"]
[Round "11"]
[TimeControl "180+2"]
[Date "2023.04.11"]
[WhiteClock "0:01:24"]
[BlackClock "0:01:03"]

1. e4 {[%clk 0:03:00]}  c5 {[%clk 0:02:59]} 2. Nf3 {[%clk 0:02:59]}  d6 {[%clk 0:03:00]} 3. d4 {[%clk 0:02:59]}  cxd4 {[%clk 0:03:01]} 4. Nxd4 {[%clk 0:02:59]}  Nf6 {[%clk 0:03:01]} 5. Nc3 {[%clk 0:02:59]}  g6 {[%clk 0:03:02]} 6. Be3 {[%clk 0:02:59]}  Bg7 {[%clk 0:03:03]} 7. f3 {[%clk 0:02:59]}  O-O {[%clk 0:03:03]} 8. Qd2 {[%clk 0:03:00]}  Nc6 {[%clk 0:03:04]} 9. Bc4 {[%clk 0:03:00]}  Bd7 {[%clk 0:03:04]} 10. O-O-O {[%clk 0:02:59]}  Rc8 {[%clk 0:03:05]} 11. Bb3 {[%clk 0:02:59]}  Nxd4 {[%clk 0:03:06]} 12. Bxd4 {[%clk 0:02:59]}  b5 {[%clk 0:03:06]} 13. a3 {[%clk 0:02:59]}  a5 {[%clk 0:03:07]} 14. Rhe1 {[%clk 0:02:59]}  b4 {[%clk 0:03:08]} 15. axb4 {[%clk 0:02:59]}  axb4 {[%clk 0:03:08]} 16. Nd5 {[%clk 0:02:59]}  Nxd5 {[%clk 0:03:09]} 17. Bxg7 {[%clk 0:03:00]}  Kxg7 {[%clk 0:03:10]} 18. exd5 {[%clk 0:03:00]}  Re8 {[%clk 0:03:03]} 19. Qxb4 {[%clk 0:02:59]}  Rb8 {[%clk 0:03:02]} 20. Qd4+ {[%clk 0:02:58]}  Kg8 {[%clk 0:03:03]} 21. Re3 {[%clk 0:02:53]}  Qa5 {[%clk 0:03:02]} 22. Rde1 {[%clk 0:02:47]}  Rb4 {[%clk 0:02:52]} 23. Bc4 {[%clk 0:02:26]}  Bb5 {[%clk 0:02:39]} 24. b3 {[%clk 0:02:23]}  Bxc4 {[%clk 0:02:33]} 25. Rxe7 {[%clk 0:01:37]}  Rf8 {[%clk 0:01:17]} 26. Re8 {[%clk 0:01:28]}  Rb8 {[%clk 0:01:04]} 27. Rxf8+ {[%clk 0:01:24]}  Rxf8 {[%clk 0:01:04]} 28. bxc4 {[%clk 0:01:24]}  Qxe1+ {[%clk 0:01:03]} 0-1


[Site "https://www.chess.com"]

[Event "Titled Tuesday Blitz April 11 Late 2023"]
[White "Aldokhin, Ivan"]
[Black "Golubev, Mikhail"]
[WhiteFideId "24115720"]
[BlackFideId "14100983"]
[WhiteElo "2322"]
[BlackElo "2374"]
[Result "0-1"]
[Round "11"]
[TimeControl "180+2"]
[Date "2023.04.11"]
[WhiteClock "0:00:29"]
[BlackClock "0:01:29"]

1. e4 {[%clk 0:02:44]}  c5 {[%clk 0:02:59]} 2. Nf3 {[%clk 0:02:44]}  d6 {[%clk 0:02:59]} 3. d4 {[%clk 0:02:45]}  cxd4 {[%clk 0:02:58]} 4. Nxd4 {[%clk 0:02:46]}  Nf6 {[%clk 0:02:59]} 5. Nc3 {[%clk 0:02:46]}  g6 {[%clk 0:02:59]} 6. Bc4 {[%clk 0:02:47]}  Bg7 {[%clk 0:02:59]} 7. Bb3 {[%clk 0:02:47]}  O-O {[%clk 0:02:58]} 8. h3 {[%clk 0:02:47]}  Nc6 {[%clk 0:02:55]} 9. Be3 {[%clk 0:02:47]}  Na5 {[%clk 0:02:53]} 10. O-O {[%clk 0:02:46]}  b6 {[%clk 0:02:53]} 11. Re1 {[%clk 0:02:46]}  Bb7 {[%clk 0:02:51]} 12. Bg5 {[%clk 0:02:46]}  Rc8 {[%clk 0:02:51]} 13. Qd3 {[%clk 0:02:44]}  a6 {[%clk 0:02:39]} 14. Nd5 {[%clk 0:02:23]}  Nxb3 {[%clk 0:02:21]} 15. Bxf6 {[%clk 0:02:13]}  exf6 {[%clk 0:01:49]} 16. Nxb3 {[%clk 0:01:53]}  f5 {[%clk 0:01:49]} 17. exf5 {[%clk 0:01:43]}  Bxd5 {[%clk 0:01:45]} 18. Qxd5 {[%clk 0:01:42]}  Rxc2 {[%clk 0:01:44]} 19. Nd4 {[%clk 0:01:29]}  Rc5 {[%clk 0:01:33]} 20. Qe4 {[%clk 0:01:19]}  Rc4 {[%clk 0:01:30]} 21. fxg6 {[%clk 0:00:34]}  hxg6 {[%clk 0:01:29]} 22. Rad1 {[%clk 0:00:29]}  Qf6 {[%clk 0:01:29]} 0-1


[Site "https://www.chess.com"]

[Event "Titled Tuesday Blitz April 11 Late 2023"]
[White "Ibadov, Dashgyn"]
[Black "Leitao, Rafael"]
[WhiteFideId "24107514"]
[BlackFideId "2101246"]
[WhiteElo "2208"]
[BlackElo "2609"]
[Result "0-1"]
[Round "11"]
[TimeControl "180+2"]
[Date "2023.04.11"]
[WhiteClock "0:00:01"]
[BlackClock "0:00:07"]

1. e4 {[%clk 0:03:00]}  e5 {[%clk 0:02:59]} 2. Nf3 {[%clk 0:03:00]}  Nc6 {[%clk 0:03:00]} 3. d4 {[%clk 0:03:00]}  exd4 {[%clk 0:03:00]} 4. Nxd4 {[%clk 0:03:01]}  Qf6 {[%clk 0:03:00]} 5. Nf3 {[%clk 0:03:00]}  Bb4+ {[%clk 0:02:56]} 6. c3 {[%clk 0:03:00]}  Bc5 {[%clk 0:02:45]} 7. Be2 {[%clk 0:02:59]}  h6 {[%clk 0:02:43]} 8. O-O {[%clk 0:02:58]}  Nge7 {[%clk 0:02:40]} 9. Nbd2 {[%clk 0:02:54]}  d6 {[%clk 0:02:31]} 10. b4 {[%clk 0:02:49]}  Bxb4 {[%clk 0:02:16]} 11. e5 {[%clk 0:02:46]}  Nxe5 {[%clk 0:02:08]} 12. Qa4+ {[%clk 0:02:07]}  N5c6 {[%clk 0:01:53]} 13. Ne4 {[%clk 0:01:32]}  Qg6 {[%clk 0:01:42]} 14. cxb4 {[%clk 0:01:07]}  Qxe4 {[%clk 0:01:40]} 15. Re1 {[%clk 0:01:07]}  Qxb4 {[%clk 0:01:32]} 16. Qc2 {[%clk 0:01:04]}  Bf5 {[%clk 0:01:27]} 17. Qd1 {[%clk 0:00:59]}  O-O {[%clk 0:01:24]} 18. Bd2 {[%clk 0:00:55]}  Qb2 {[%clk 0:01:20]} 19. Rc1 {[%clk 0:00:51]}  Qxa2 {[%clk 0:01:16]} 20. Bc3 {[%clk 0:00:51]}  Rae8 {[%clk 0:00:54]} 21. Nd4 {[%clk 0:00:44]}  Bg6 {[%clk 0:00:31]} 22. Nb5 {[%clk 0:00:22]}  Nd5 {[%clk 0:00:24]} 23. Bxg7 {[%clk 0:00:08]}  Kxg7 {[%clk 0:00:21]} 24. Bc4 {[%clk 0:00:09]}  Rxe1+ {[%clk 0:00:19]} 25. Qxe1 {[%clk 0:00:10]}  Qb2 {[%clk 0:00:14]} 26. Bxd5 {[%clk 0:00:03]}  Qxb5 {[%clk 0:00:14]} 27. Qc3+ {[%clk 0:00:03]}  Kh7 {[%clk 0:00:10]} 28. Rd1 {[%clk 0:00:01]}  Qe2 {[%clk 0:00:07]} 0-1


[Site "https://www.chess.com"]

[Event "Titled Tuesday Blitz April 11 Late 2023"]
[White "Santos Flores, Alberto"]
[Black "Di Berardino, Diego Rafael"]
[WhiteFideId "3601234"]
[BlackFideId "2105446"]
[WhiteElo "2235"]
[BlackElo "2432"]
[Result "0-1"]
[Round "11"]
[TimeControl "180+2"]
[Date "2023.04.11"]
[WhiteClock "0:00:10"]
[BlackClock "0:00:10"]

1. d4 {[%clk 0:03:00]}  Nf6 {[%clk 0:02:58]} 2. Bf4 {[%clk 0:03:00]}  c5 {[%clk 0:02:56]} 3. e3 {[%clk 0:02:58]}  Nd5 {[%clk 0:02:56]} 4. Bg3 {[%clk 0:02:55]}  Qb6 {[%clk 0:02:55]} 5. Nc3 {[%clk 0:02:44]}  Nxc3 {[%clk 0:02:51]} 6. bxc3 {[%clk 0:02:45]}  Qa5 {[%clk 0:02:51]} 7. Qd2 {[%clk 0:02:43]}  d6 {[%clk 0:02:51]} 8. Nf3 {[%clk 0:02:41]}  g6 {[%clk 0:02:51]} 9. c4 {[%clk 0:02:38]}  Qxd2+ {[%clk 0:02:50]} 10. Kxd2 {[%clk 0:02:38]}  Bg7 {[%clk 0:02:46]} 11. c3 {[%clk 0:02:38]}  Nc6 {[%clk 0:02:46]} 12. Be2 {[%clk 0:02:31]}  O-O {[%clk 0:02:44]} 13. Rab1 {[%clk 0:02:28]}  b6 {[%clk 0:02:42]} 14. Ne1 {[%clk 0:02:11]}  Ba6 {[%clk 0:02:36]} 15. Nc2 {[%clk 0:02:09]}  Na5 {[%clk 0:02:32]} 16. Na3 {[%clk 0:02:07]}  Rac8 {[%clk 0:02:30]} 17. Rhc1 {[%clk 0:02:03]}  e5 {[%clk 0:02:24]} 18. d5 {[%clk 0:01:49]}  f5 {[%clk 0:02:18]} 19. Nb5 {[%clk 0:01:33]}  Bxb5 {[%clk 0:02:00]} 20. cxb5 {[%clk 0:01:34]}  f4 {[%clk 0:02:00]} 21. Bh4 {[%clk 0:01:29]}  Bf6 {[%clk 0:01:46]} 22. Bxf6 {[%clk 0:01:26]}  Rxf6 {[%clk 0:01:47]} 23. e4 {[%clk 0:01:19]}  h5 {[%clk 0:01:43]} 24. c4 {[%clk 0:01:16]}  Kg7 {[%clk 0:01:42]} 25. Kd3 {[%clk 0:01:15]}  Kh6 {[%clk 0:01:41]} 26. h4 {[%clk 0:01:13]}  Rg8 {[%clk 0:01:39]} 27. Rh1 {[%clk 0:01:10]}  Ra8 {[%clk 0:01:28]} 28. a4 {[%clk 0:00:53]}  Rf7 {[%clk 0:01:26]} 29. Kc3 {[%clk 0:00:51]}  a6 {[%clk 0:01:17]} 30. bxa6 {[%clk 0:00:35]}  Rxa6 {[%clk 0:01:17]} 31. Rb5 {[%clk 0:00:36]}  Rb7 {[%clk 0:01:00]} 32. Rhb1 {[%clk 0:00:36]}  Kg7 {[%clk 0:00:59]} 33. Bf1 {[%clk 0:00:29]}  Kf6 {[%clk 0:00:58]} 34. g3 {[%clk 0:00:29]}  Rb8 {[%clk 0:00:40]} 35. Bh3 {[%clk 0:00:28]}  Ke7 {[%clk 0:00:37]} 36. Be6 {[%clk 0:00:27]}  Kf6 {[%clk 0:00:35]} 37. Bh3 {[%clk 0:00:25]}  Ke7 {[%clk 0:00:33]} 38. Be6 {[%clk 0:00:24]}  fxg3 {[%clk 0:00:30]} 39. fxg3 {[%clk 0:00:24]}  Rf8 {[%clk 0:00:30]} 40. Rxb6 {[%clk 0:00:20]}  Rxb6 {[%clk 0:00:30]} 41. Rxb6 {[%clk 0:00:20]}  Rf3+ {[%clk 0:00:31]} 42. Kc2 {[%clk 0:00:21]}  Nxc4 {[%clk 0:00:28]} 43. Rb7+ {[%clk 0:00:21]}  Kd8 {[%clk 0:00:27]} 44. a5 {[%clk 0:00:16]}  Ra3 {[%clk 0:00:20]} 45. Rd7+ {[%clk 0:00:14]}  Ke8 {[%clk 0:00:19]} 46. Rg7 {[%clk 0:00:15]}  Rxa5 {[%clk 0:00:18]} 47. Rxg6 {[%clk 0:00:15]}  Ra3 {[%clk 0:00:17]} 48. Rg5 {[%clk 0:00:13]}  Ke7 {[%clk 0:00:16]} 49. Rxh5 {[%clk 0:00:12]}  Rxg3 {[%clk 0:00:16]} 50. Rh7+ {[%clk 0:00:13]}  Kf6 {[%clk 0:00:14]} 51. h5 {[%clk 0:00:14]}  Rg2+ {[%clk 0:00:13]} 52. Kc1 {[%clk 0:00:13]}  Ne3 {[%clk 0:00:13]} 53. Rf7+ {[%clk 0:00:13]}  Kg5 {[%clk 0:00:13]} 54. Rg7+ {[%clk 0:00:13]}  Kxh5 {[%clk 0:00:14]} 55. Rh7+ {[%clk 0:00:13]}  Kg5 {[%clk 0:00:13]} 56. Rd7 {[%clk 0:00:13]}  Kf4 {[%clk 0:00:12]} 57. Rxd6 {[%clk 0:00:13]}  Kxe4 {[%clk 0:00:12]} 58. Rc6 {[%clk 0:00:13]}  c4 {[%clk 0:00:12]} 59. d6 {[%clk 0:00:13]}  Kd3 {[%clk 0:00:09]} 60. d7 {[%clk 0:00:13]}  Kc3 {[%clk 0:00:10]} 61. Kb1 {[%clk 0:00:11]}  Rb2+ {[%clk 0:00:10]} 62. Ka1 {[%clk 0:00:10]}  Nc2# {[%clk 0:00:10]} 0-1


[Site "https://www.chess.com"]

[Event "Titled Tuesday Blitz April 11 Late 2023"]
[White "Gallegos Diaz, Carlos Alberto"]
[Black "Vlassov, Nikolai"]
[WhiteFideId "3900886"]
[BlackFideId "4103360"]
[WhiteElo "2362"]
[BlackElo "2324"]
[Result "0-1"]
[Round "11"]
[TimeControl "180+2"]
[Date "2023.04.11"]
[WhiteClock "0:00:20"]
[BlackClock "0:00:09"]

1. e4 {[%clk 0:03:00]}  c5 {[%clk 0:02:58]} 2. Nf3 {[%clk 0:03:00]}  d6 {[%clk 0:02:58]} 3. d3 {[%clk 0:02:59]}  Nc6 {[%clk 0:02:54]} 4. Nbd2 {[%clk 0:02:59]}  g6 {[%clk 0:02:51]} 5. Be2 {[%clk 0:02:59]}  Bg7 {[%clk 0:02:52]} 6. O-O {[%clk 0:03:00]}  f5 {[%clk 0:02:50]} 7. h3 {[%clk 0:02:59]}  Nf6 {[%clk 0:02:50]} 8. c3 {[%clk 0:02:59]}  O-O {[%clk 0:02:49]} 9. Re1 {[%clk 0:03:00]}  e5 {[%clk 0:02:48]} 10. a3 {[%clk 0:03:00]}  f4 {[%clk 0:02:47]} 11. b4 {[%clk 0:02:58]}  h6 {[%clk 0:02:42]} 12. Bb2 {[%clk 0:02:57]}  g5 {[%clk 0:02:41]} 13. b5 {[%clk 0:02:56]}  Ne7 {[%clk 0:02:40]} 14. d4 {[%clk 0:02:56]}  Ng6 {[%clk 0:02:38]} 15. Bc4+ {[%clk 0:02:54]}  Kh8 {[%clk 0:02:37]} 16. a4 {[%clk 0:02:52]}  g4 {[%clk 0:02:27]} 17. hxg4 {[%clk 0:02:49]}  Bxg4 {[%clk 0:02:26]} 18. Qb3 {[%clk 0:02:46]}  Nh7 {[%clk 0:02:14]} 19. Be6 {[%clk 0:02:42]}  h5 {[%clk 0:02:02]} 20. Nh2 {[%clk 0:02:29]}  Qg5 {[%clk 0:01:15]} 21. Ndf3 {[%clk 0:02:25]}  Bxf3 {[%clk 0:01:14]} 22. Nxf3 {[%clk 0:02:25]}  Qh6 {[%clk 0:01:13]} 23. Bf5 {[%clk 0:02:24]}  Ng5 {[%clk 0:01:10]} 24. Bxg6 {[%clk 0:01:35]}  Nxf3+ {[%clk 0:01:07]} 25. gxf3 {[%clk 0:01:36]}  Qxg6+ {[%clk 0:01:07]} 26. Kf1 {[%clk 0:01:37]}  exd4 {[%clk 0:00:55]} 27. cxd4 {[%clk 0:01:38]}  Bxd4 {[%clk 0:00:53]} 28. Bxd4+ {[%clk 0:01:36]}  cxd4 {[%clk 0:00:54]} 29. Qd5 {[%clk 0:01:22]}  Rac8 {[%clk 0:00:44]} 30. Qxd4+ {[%clk 0:01:18]}  Qf6 {[%clk 0:00:39]} 31. Qxf6+ {[%clk 0:01:15]}  Rxf6 {[%clk 0:00:39]} 32. Rac1 {[%clk 0:01:16]}  Rc5 {[%clk 0:00:31]} 33. Ke2 {[%clk 0:00:54]}  Kg7 {[%clk 0:00:30]} 34. Rh1 {[%clk 0:00:52]}  Rxc1 {[%clk 0:00:22]} 35. Rxc1 {[%clk 0:00:51]}  h4 {[%clk 0:00:21]} 36. Rh1 {[%clk 0:00:40]}  Rh6 {[%clk 0:00:21]} 37. Rh3 {[%clk 0:00:38]}  Kf6 {[%clk 0:00:21]} 38. Kd3 {[%clk 0:00:36]}  Ke5 {[%clk 0:00:21]} 39. Kc4 {[%clk 0:00:36]}  Rh7 {[%clk 0:00:20]} 40. a5 {[%clk 0:00:35]}  Rh8 {[%clk 0:00:19]} 41. Kc3 {[%clk 0:00:32]}  d5 {[%clk 0:00:18]} 42. exd5 {[%clk 0:00:31]}  Kxd5 {[%clk 0:00:19]} 43. Kb4 {[%clk 0:00:31]}  Kd4 {[%clk 0:00:19]} 44. b6 {[%clk 0:00:28]}  axb6 {[%clk 0:00:18]} 45. axb6 {[%clk 0:00:28]}  Kd3 {[%clk 0:00:18]} 46. Kc5 {[%clk 0:00:27]}  Rh6 {[%clk 0:00:18]} 47. Kd5 {[%clk 0:00:25]}  Rh5+ {[%clk 0:00:15]} 48. Ke6 {[%clk 0:00:24]}  Ke2 {[%clk 0:00:15]} 49. Rh2 {[%clk 0:00:20]}  Kxf3 {[%clk 0:00:15]} 50. Kf6 {[%clk 0:00:21]}  Rh6+ {[%clk 0:00:12]} 51. Kg5 {[%clk 0:00:20]}  Rxb6 {[%clk 0:00:11]} 52. Rh3+ {[%clk 0:00:20]}  Kxf2 {[%clk 0:00:11]} 53. Kxf4 {[%clk 0:00:20]}  Rb4+ {[%clk 0:00:11]} 54. Ke5 {[%clk 0:00:20]}  Kg2 {[%clk 0:00:10]} 55. Rc3 {[%clk 0:00:20]}  h3 {[%clk 0:00:10]} 56. Rc2+ {[%clk 0:00:21]}  Kg3 {[%clk 0:00:11]} 57. Rc3+ {[%clk 0:00:21]}  Kh4 {[%clk 0:00:11]} 58. Rc1 {[%clk 0:00:21]}  h2 {[%clk 0:00:10]} 59. Kd5 {[%clk 0:00:20]}  Kg3 {[%clk 0:00:09]} 60. Rc3+ {[%clk 0:00:20]}  Kg2 {[%clk 0:00:09]} 61. Rc2+ {[%clk 0:00:20]}  Kg3 {[%clk 0:00:09]} 62. Rc3+ {[%clk 0:00:21]}  Kg4 {[%clk 0:00:10]} 63. Rc1 {[%clk 0:00:21]}  Rf4 {[%clk 0:00:09]} 64. Kc5 {[%clk 0:00:20]}  Kg3 {[%clk 0:00:09]} 65. Rh1 {[%clk 0:00:20]}  Kg2 {[%clk 0:00:09]} 0-1


[Site "https://www.chess.com"]